bitfinex/quotes_SOLUSD_20260202
["timestamp","ask_amount","ask_price","bid_price","bid_amount"]
[1770024988403,4.5,102.62,102.58,9.12377728]
[1770024988918,8.77527085,102.68,102.58,9.74841676]
[1770024989208,17.42,102.67,102.6,4.27527085]
[1770024989378,4.5,102.66,102.63,9.12377728]
[1770024989799,4.5,102.66,102.64,9.12377728]
[1770024989983,4.5,102.66,102.63,9.12377728]
[1770024990188,4.5,102.66,102.64,9.12377728]
[1770024990702,4.5,102.68,102.65,9.12377728]
[1770024990899,4.5,102.68,102.66,9.12377728]
[1770024991502,30.0,102.67,102.66,9.12377728]
[1770024992389,4.5,102.68,102.66,9.1267916]
[1770024993210,4.5,102.68,102.67,9.1267916]
[1770024993999,4.5,102.7,102.67,9.1267916]
[1770024995403,4.5,102.69,102.67,9.1267916]
[1770024996806,4.5,102.69,102.63,10.02804943]
[1770024996807,4.5,102.69,102.63,0.28432314]
[1770024996994,4.5,102.69,102.65,9.1267916]
[1770024997196,4.5,102.69,102.66,9.1267916]
[1770024997591,4.5,102.69,102.65,9.1267916]
[1770024998307,4.5,102.69,102.66,9.1267916]
[1770024998500,4.5,102.69,102.65,9.1267916]
[1770024998714,6.58082193,102.72,102.65,9.1267916]
[1770024998715,31.58,102.68,102.65,9.1267916]
[1770024999007,4.5,102.67,102.64,9.1267916]
[1770025000405,4.5,102.67,102.58,5.36086188]
[1770025000406,31.58,102.67,102.65,9.1267916]
[1770025001013,4.5,102.66,102.64,9.1267916]
[1770025001430,4.5,102.71,102.65,9.1267916]
[1770025001614,11.08082193,102.72,102.69,9.1267916]
[1770025001805,11.08082193,102.72,102.66,0.28432314]
[1770025001806,4.5,102.69,102.66,0.28432314]
[1770025002026,4.5,102.69,102.66,9.1267916]
[1770025002402,4.5,102.69,102.67,9.1267916]
[1770025002916,4.5,102.69,102.63,4.55959399]
[1770025003138,4.5,102.69,102.67,9.1267916]
[1770025004022,4.5,102.69,102.66,9.1267916]
[1770025004223,4.5,102.69,102.67,9.1267916]
[1770025005928,4.5,102.69,102.66,9.1267916]
[1770025006224,4.5,102.69,102.64,9.1267916]
[1770025006434,4.5,102.69,102.65,9.1267916]
[1770025006633,6.58082193,102.72,102.65,9.1267916]
[1770025006634,6.58082193,102.72,102.69,0.28432314]
[1770025006927,4.5,102.76,102.74,9.1267916]
[1770025007429,4.5,102.76,102.72,0.28432314]
[1770025007655,0.2,102.77,102.74,18.85995151]
[1770025007809,0.2,102.78,102.75,0.28432314]
[1770025008003,10.84140582,102.8,102.77,9.1267916]
[1770025008409,4.5,102.79,102.76,9.1267916]
[1770025008616,4.5,102.79,102.72,4.27527085]
[1770025008916,4.5,102.77,102.71,0.28432314]
[1770025009123,4.5,102.77,102.73,9.1267916]
[1770025009408,4.5,102.77,102.74,9.1267916]
[1770025010426,4.5,102.77,102.71,0.28432314]
[1770025010427,4.5,102.77,102.71,19.65633786]
[1770025010615,4.5,102.77,102.72,9.73519608]
[1770025010817,4.5,102.77,102.75,9.1267916]
[1770025011019,6.34140582,102.8,102.76,9.1267916]
[1770025011217,10.84140582,102.8,102.78,9.1267916]
[1770025012230,10.84140582,102.8,102.74,4.27527085]
[1770025012231,4.5,102.79,102.74,4.27527085]
[1770025012437,4.5,102.79,102.76,9.1267916]
[1770025014029,33.40140582,102.8,102.78,9.1267916]
[1770025014333,37.90140582,102.8,102.78,9.1267916]
[1770025014632,6.34140582,102.8,102.79,9.1267916]
[1770025014937,10.84140582,102.8,102.77,9.1267916]
[1770025015118,10.84140582,102.8,102.78,9.1267916]
[1770025015836,4.5,102.79,102.74,4.27527085]
[1770025016135,4.5,102.79,102.76,9.1267916]
[1770025016136,4.5,102.78,102.76,9.1267916]
[1770025016736,10.84140582,102.8,102.77,9.1267916]
[1770025016915,10.84140582,102.8,102.75,0.28432314]
[1770025017111,10.84140582,102.8,102.78,9.1267916]
[1770025017340,6.34140582,102.8,102.79,9.1267916]
[1770025017542,4.5,102.86,102.8,0.28432314]
[1770025017718,4.5,102.86,102.81,9.1267916]
[1770025017923,4.5,102.85,102.81,9.1267916]
[1770025018513,4.5,102.85,102.82,9.1267916]
[1770025018719,4.5,102.85,102.81,9.1267916]
[1770025018915,4.5,102.89,102.81,9.1267916]
[1770025019131,4.5,102.89,102.85,9.1267916]
[1770025019322,4.5,102.89,102.84,9.1267916]
[1770025019647,4.5,102.87,102.82,9.1267916]
[1770025019825,4.5,102.87,102.84,9.1267916]
[1770025020136,4.5,102.87,102.82,9.1267916]
[1770025020355,4.5,102.87,102.79,5.36086188]
[1770025020356,4.5,102.87,102.8,0.28432314]
[1770025020643,11.02575215,102.9,102.86,9.1267916]
[1770025020841,11.02575215,102.9,102.88,9.1267916]
[1770025021043,0.1,102.91,102.89,9.1267916]
[1770025021243,4.6,102.91,102.87,0.28432314]
[1770025021538,4.6,102.91,102.89,9.1267916]
[1770025021730,4.6,102.91,102.87,9.1267916]
[1770025022125,0.1,102.91,102.9,9.1267916]
[1770025022441,4.5,102.97,102.9,9.1267916]
[1770025022653,6.55695133,102.98,102.95,9.1267916]
[1770025022951,4.5,102.97,102.92,0.14216157]
[1770025023441,4.5,102.97,102.92,9.1267916]
[1770025023633,4.5,102.96,102.83,24.31119402]
[1770025023819,4.5,102.91,102.83,9.1267916]
[1770025024021,4.5,102.89,102.85,9.1267916]
[1770025024237,4.5,102.89,102.76,54.8730441]
[1770025024238,13.6267916,102.87,102.76,9.73117019]
[1770025024433,0.28432314,102.88,102.73,38.91386352]
[1770025024434,4.5,102.84,102.73,38.91386352]
[1770025024637,4.5,102.87,102.76,9.1267916]
[1770025024832,13.6267916,102.84,102.79,9.1267916]
[1770025025051,4.5,102.86,102.81,9.1267916]
[1770025025675,4.5,102.85,102.8,9.1267916]
[1770025025965,4.5,102.85,102.81,9.1267916]
[1770025026323,58.59777854,103.02,102.84,11.34932363]
[1770025026540,48.82301317,103.05,102.88,9.1267916]
[1770025026731,25.56,102.97,102.9,9.1267916]
[1770025026931,0.3127717,103.05,102.91,2.50685517]
[1770025026932,9.1267916,103.04,102.91,2.50685517]
[1770025027144,9.1267916,103.04,102.94,9.1267916]
[1770025027145,9.1267916,103.0,102.94,9.1267916]
[1770025027343,9.1267916,103.0,102.93,0.28432314]
[1770025027546,27.04,103.01,102.97,9.1267916]
[1770025027750,0.3127717,103.05,102.95,9.1267916]
[1770025027921,9.1267916,103.0,102.92,0.14216157]
[1770025028126,4.27527085,103.0,102.91,9.1267916]
[1770025028430,4.06502135,103.0,102.95,9.1267916]
[1770025028621,4.06502135,103.0,102.96,9.1267916]
[1770025028827,4.06502135,103.0,102.93,2.22253203]
[1770025029034,10.62197268,102.98,102.94,9.1267916]
[1770025029248,6.55695133,102.98,102.97,9.1267916]
[1770025029450,6.6143705,103.04,102.98,0.28432314]
[1770025029652,11.1143705,103.04,103.0,9.1267916]
[1770025029946,6.97215037,103.03,103.0,9.1267916]
[1770025030160,2.47215037,103.03,103.01,9.1267916]
[1770025030532,4.5,103.01,102.9,9.1267916]
[1770025030732,4.5,103.0,102.94,9.1267916]
[1770025031046,4.5,102.98,102.93,9.1267916]
[1770025031251,4.5,102.98,102.84,127.20167473]
[1770025031447,4.5,102.96,102.91,9.1267916]
[1770025031655,4.5,102.95,102.9,9.1267916]
[1770025031846,28.8,102.97,102.93,9.1267916]
[1770025032046,4.5,102.99,102.91,0.14216157]
[1770025032248,4.5,102.99,102.95,9.1267916]
[1770025032452,4.5,102.97,102.93,9.1267916]
[1770025032834,4.5,102.96,102.91,9.1267916]
[1770025033041,4.5,102.96,102.92,9.1267916]
[1770025033358,4.5,102.96,102.91,9.1267916]
[1770025033540,9.1267916,102.96,102.91,9.1267916]
[1770025033740,4.5,102.95,102.9,9.1267916]
[1770025033941,4.5,102.95,102.91,9.1267916]
[1770025034142,4.5,102.95,102.93,9.1267916]
[1770025034342,31.52,102.97,102.92,9.1267916]
[1770025034650,31.52,102.97,102.9,0.28432314]
[1770025034651,4.5,102.96,102.91,9.1267916]
[1770025034856,4.5,102.96,102.93,9.1267916]
[1770025035158,6.97215037,103.03,102.96,0.28432314]
[1770025035338,2.47215037,103.03,103.02,9.1267916]
[1770025035743,4.5,103.12,103.03,0.28432314]
[1770025036059,4.5,103.12,103.05,0.28432314]
[1770025036244,4.5,103.14,103.09,9.1267916]
[1770025036562,4.5,103.16,103.07,0.14216157]
[1770025036751,4.5,103.13,103.04,9.26895317]
[1770025036965,4.5,103.12,103.05,0.14216157]
[1770025037268,4.5,103.12,102.97,57.70725136]
[1770025037269,4.5,103.06,103.01,9.1267916]
[1770025037455,4.5,103.09,103.04,9.1267916]
[1770025037657,4.5,103.08,103.03,9.1267916]
[1770025037957,9.1267916,103.09,103.01,9.63613273]
[1770025038184,4.5,103.06,103.01,9.1267916]
[1770025038475,4.5,103.06,102.96,5.36086188]
[1770025038650,4.5,103.05,103.0,9.1267916]
[1770025038959,4.5,103.05,102.99,9.1267916]
[1770025039159,13.6267916,103.05,102.98,0.14216157]
[1770025039367,4.5,103.05,103.01,9.1267916]
[1770025039783,4.5,103.06,103.01,9.1267916]
[1770025040067,27.0,103.09,102.96,13.98704323]
[1770025040068,4.5,103.04,102.99,9.1267916]
[1770025040571,4.5,103.13,103.04,0.28432314]
[1770025040764,4.5,103.13,103.09,9.1267916]
[1770025040964,9.1267916,103.15,103.09,9.1267916]
[1770025040965,13.6267916,103.15,103.09,9.1267916]
[1770025041150,4.5,103.14,103.11,9.1267916]
[1770025041350,4.5,103.14,103.12,9.1267916]
[1770025041546,10.23988725,103.23,103.09,0.28432314]
[1770025041751,10.23988725,103.23,103.16,4.27527085]
[1770025041752,0.1,103.23,103.16,4.27527085]
[1770025041972,4.6,103.23,103.19,9.1267916]
[1770025042161,4.6,103.23,103.18,9.1267916]
[1770025042357,4.6,103.23,103.18,14.49351034]
[1770025042564,4.6,103.23,103.15,0.14216157]
[1770025042778,4.5,103.21,103.15,14.49351034]
[1770025042954,18.99351034,103.21,103.15,14.49351034]
[1770025043152,4.5,103.2,103.15,14.49351034]
[1770025043650,0.1,103.23,103.14,0.28432314]
[1770025043651,4.5,103.22,103.14,0.28432314]
[1770025043851,4.6,103.23,103.17,14.49351034]
[1770025044065,0.1,103.23,103.19,14.49351034]
[1770025044265,18.99351034,103.28,103.22,14.49351034]
[1770025044447,4.5,103.27,103.23,14.49351034]
[1770025044773,4.5,103.28,103.23,14.49351034]
[1770025045074,14.49351034,103.28,103.22,14.49351034]
[1770025045259,14.49351034,103.28,103.19,5.36086188]
[1770025045260,4.5,103.23,103.19,14.49351034]
[1770025045461,4.5,103.23,103.18,14.49351034]
[1770025045861,14.49351034,103.21,103.15,14.49351034]
[1770025046060,4.5,103.18,103.14,14.49351034]
[1770025046260,18.99351034,103.18,103.13,14.49351034]
[1770025046677,4.5,103.18,103.13,14.49351034]
[1770025047084,18.99351034,103.18,103.07,24.25397016]
[1770025047254,4.5,103.19,103.08,14.49351034]
[1770025047454,4.5,103.14,103.06,110.07226651]
[1770025047656,4.5,103.11,103.06,124.56577685]
[1770025047966,4.27527085,103.16,103.06,110.07226651]
[1770025047967,18.99351034,103.1,103.06,110.07226651]
[1770025048163,4.5,103.1,103.06,14.49351034]
[1770025048466,4.5,103.1,102.98,48.18497792]
[1770025048467,26.96,103.13,102.98,48.18497792]
[1770025048672,4.5,103.14,103.09,14.49351034]
[1770025049080,4.5,103.13,103.08,14.49351034]
[1770025049282,31.23527085,103.18,103.01,48.84025398]
[1770025049283,4.5,103.17,103.1,14.49351034]
[1770025049461,4.5,103.15,103.1,14.49351034]
[1770025049659,18.99351034,103.15,103.04,4.27527085]
[1770025049994,4.5,103.12,103.08,14.49351034]
[1770025050368,4.5,103.12,103.07,14.49351034]
[1770025050572,18.99351034,103.12,103.07,14.49351034]
[1770025050777,4.5,103.12,103.08,14.49351034]
[1770025050976,4.5,103.11,103.06,14.49351034]
[1770025051283,4.5,103.1,103.05,14.49351034]
[1770025051587,4.5,103.08,103.03,14.49351034]
[1770025051967,4.5,103.08,103.04,14.49351034]
[1770025052172,4.5,103.08,103.0,0.28432314]
[1770025052359,4.5,103.08,103.04,14.49351034]
[1770025052562,4.5,103.08,102.99,19.34520617]
[1770025052761,4.5,103.08,103.03,14.49351034]
[1770025053165,5.36086188,103.16,103.03,14.49351034]
[1770025053166,14.49351034,103.15,103.07,0.28432314]
[1770025053382,14.49351034,103.14,103.08,14.49351034]
[1770025053568,26.96,103.19,103.07,18.93328388]
[1770025053768,14.49351034,103.15,103.07,4.43977354]
[1770025053971,14.49351034,103.14,103.08,14.49351034]
[1770025054182,14.49351034,103.13,103.07,4.43977354]
[1770025054479,14.52578608,103.13,103.07,18.96555962]
[1770025054783,41.48578608,103.14,103.08,14.52578608]
[1770025055192,4.06502135,103.12,103.07,14.52578608]
[1770025055393,4.06502135,103.11,103.06,14.52578608]
[1770025055565,4.06502135,103.11,103.07,14.52578608]
[1770025055767,4.06502135,103.11,103.05,0.28432314]
[1770025055981,4.06502135,103.11,103.06,14.52578608]
[1770025056488,4.06502135,103.11,103.07,14.52578608]
[1770025056782,4.06502135,103.11,103.05,0.28432314]
[1770025056990,4.06502135,103.11,103.06,14.52578608]
[1770025058496,4.06502135,103.11,103.07,14.52578608]
[1770025058870,4.06502135,103.11,103.06,0.28432314]
[1770025059185,4.06502135,103.11,103.07,14.52578608]
[1770025059684,4.08398695,103.15,103.1,14.52578608]
[1770025059881,8.17,103.11,103.09,4.12518484]
[1770025060079,4.5,103.17,103.1,14.52578608]
[1770025060286,4.5,103.13,103.08,14.52578608]
[1770025060587,4.5,103.12,103.05,0.14216157]
[1770025061490,4.5,103.12,103.07,14.52578608]
[1770025062081,4.5,103.11,103.07,14.52578608]
[1770025062476,4.5,103.09,103.02,4.27527085]
[1770025062678,4.5,103.09,103.04,14.52578608]
[1770025063388,19.02578608,103.09,103.04,14.52578608]
[1770025063574,19.02578608,103.09,102.98,5.36086188]
[1770025063575,4.5,103.07,103.03,14.52578608]
[1770025063785,4.5,103.07,103.04,14.52578608]
[1770025063975,4.5,103.07,103.03,14.52578608]
[1770025064176,4.5,103.07,103.02,14.52578608]
[1770025064401,4.5,103.06,103.02,14.52578608]
[1770025064899,4.5,103.06,103.0,14.52578608]
[1770025064900,4.5,103.05,103.0,14.52578608]
[1770025065073,4.5,103.05,103.01,14.52578608]
[1770025065479,31.46,103.07,103.03,14.52578608]
[1770025065684,4.5,103.06,103.03,14.52578608]
[1770025065908,4.5,103.06,103.02,14.52578608]
[1770025066076,30.0,103.04,103.02,14.52578608]
[1770025066278,44.52578608,103.04,102.99,14.52578608]
[1770025066482,44.52578608,103.04,102.97,126.38072077]
[1770025066483,14.52578608,103.02,102.97,126.38072077]
[1770025066697,26.96,103.03,102.97,126.38072077]
[1770025067382,30.0,103.01,102.97,126.38072077]
[1770025068095,30.0,103.01,102.98,14.52578608]
[1770025068601,30.0,103.01,102.99,14.52578608]
[1770025069108,34.5,103.01,102.98,14.52578608]
[1770025069277,34.5,103.01,102.97,140.90650685]
[1770025070376,30.0,103.01,102.99,14.52578608]
[1770025070804,34.5,103.01,102.97,126.38072077]
[1770025070979,4.5,103.0,102.97,126.38072077]
[1770025071291,27.65817106,103.01,102.99,14.52578608]
[1770025071593,27.65817106,103.01,103.0,14.52578608]
[1770025071799,27.65817106,103.01,102.99,14.52578608]
[1770025071992,27.65817106,103.01,103.0,14.52578608]
[1770025072199,27.65817106,103.01,102.97,126.38072077]
[1770025072200,27.65817106,103.01,102.99,14.52578608]
[1770025072693,27.65817106,103.01,103.0,14.52578608]
[1770025073586,27.65817106,103.01,102.99,14.52578608]
[1770025074179,27.65817106,103.01,103.0,14.52578608]
[1770025074881,31.48,103.07,103.0,14.52578608]
[1770025075075,4.5,103.06,103.03,14.52578608]
[1770025076196,4.5,103.06,103.02,14.52578608]
[1770025076401,4.5,103.05,103.01,14.52578608]
[1770025077491,4.5,103.05,103.0,14.52578608]
[1770025077691,4.5,103.04,102.98,0.14216157]
[1770025078000,4.5,103.04,103.0,14.52578608]
[1770025078599,4.27527085,103.1,102.97,136.09227174]
[1770025078600,14.52578608,103.01,102.97,126.38072077]
[1770025078803,4.5,103.0,102.97,126.38072077]
[1770025079005,4.5,103.0,102.95,14.52578608]
[1770025079581,4.5,103.0,102.92,9.71619997]
[1770025079801,31.48,103.02,102.98,14.52578608]
[1770025080187,30.0,102.99,102.96,0.28432314]
[1770025080387,30.0,102.99,102.98,14.52578608]
[1770025080690,34.5,102.99,102.96,14.52578608]
[1770025080995,30.0,102.99,102.96,14.52578608]
[1770025081190,34.5,102.99,102.96,14.52578608]
[1770025081395,4.5,102.98,102.94,14.52578608]
[1770025081597,34.5,102.97,102.87,56.64141611]
[1770025081899,61.48,102.97,102.93,14.52578608]
[1770025082084,61.48,102.97,102.92,14.52578608]
[1770025082285,61.48,102.97,102.93,14.52578608]
[1770025082705,61.48,102.97,102.92,14.52578608]
[1770025083000,4.5,102.96,102.92,14.52578608]
[1770025083204,4.5,102.94,102.9,14.52578608]
[1770025083499,30.0,102.95,102.93,14.52578608]
[1770025083891,30.0,102.95,102.88,80.57478215]
[1770025083892,30.0,102.95,102.92,14.52578608]
[1770025084208,34.5,102.95,102.91,14.52578608]
[1770025084405,34.5,102.95,102.92,9.08054948]
[1770025084783,34.5,102.95,102.91,9.08054948]
[1770025084983,36.06054948,102.97,102.92,9.08054948]
[1770025084984,30.0,102.93,102.92,9.08054948]
[1770025085184,26.98,102.97,102.92,9.08054948]
[1770025085382,4.5,103.0,102.96,9.08054948]
[1770025085599,31.48,102.99,102.96,9.08054948]
[1770025085805,26.98,103.01,102.98,9.08054948]
[1770025085995,31.48,103.01,102.98,9.08054948]
[1770025086395,31.48,103.01,102.98,14.55059115]
[1770025086599,31.48,103.01,102.99,14.55059115]
[1770025086796,4.5,103.01,102.99,14.55059115]
[1770025086994,4.5,103.01,102.98,14.55059115]
[1770025087206,4.5,102.99,102.94,14.55059115]
[1770025087486,56.98,102.98,102.95,14.55059115]
[1770025087988,4.5,102.97,102.94,14.55059115]
[1770025088197,4.5,102.97,102.93,14.55059115]
[1770025088493,26.98,102.98,102.94,14.55059115]
[1770025088692,4.5,102.99,102.94,14.55059115]
[1770025088920,26.98,102.98,102.95,14.55059115]
[1770025089294,4.5,102.99,102.96,14.55059115]
[1770025089500,31.48,102.99,102.96,14.55059115]
[1770025089789,4.5,102.99,102.96,14.55059115]
[1770025090006,31.48,103.01,102.97,14.55059115]
[1770025090385,31.48,103.01,102.93,9.9991139]
[1770025090386,31.48,103.01,102.94,9.71431126]
[1770025090604,4.5,103.05,103.0,14.55059115]
[1770025090785,30.0,103.01,102.97,9.7110615]
[1770025090986,31.48,103.04,103.0,14.55059115]
[1770025091203,4.5,103.03,102.99,14.55059115]
[1770025091788,4.5,103.02,102.98,14.55059115]
[1770025091991,4.5,103.02,102.97,14.55059115]
[1770025092298,26.98,103.04,103.01,14.55059115]
[1770025092605,30.0,103.02,103.0,14.55059115]
[1770025092807,30.0,103.02,103.01,14.55059115]
[1770025093011,30.0,103.02,102.96,14.55059115]
[1770025093012,4.5,103.02,102.96,14.55059115]
[1770025093504,30.0,103.01,102.96,14.55059115]
[1770025093691,4.5,102.99,102.95,14.55059115]
[1770025093891,4.5,102.96,102.88,56.27537682]
[1770025094091,26.98,102.95,102.92,14.55059115]
[1770025094494,4.5,102.96,102.88,56.27537682]
[1770025094711,19.05059115,102.96,102.9,14.55059115]
[1770025094891,19.05059115,102.95,102.89,14.55059115]
[1770025095090,30.0,102.94,102.88,70.82596797]
[1770025095290,19.05059115,102.92,102.88,56.27537682]
[1770025095607,46.03059115,102.92,102.86,14.55059115]
[1770025095908,19.05059115,102.9,102.84,14.55059115]
[1770025096095,30.0,102.89,102.84,14.55059115]
[1770025096292,30.0,102.89,102.86,14.55059115]
[1770025096494,30.0,102.89,102.85,0.28432314]
[1770025096697,30.0,102.89,102.85,14.83491429]
[1770025096896,30.0,102.89,102.85,14.55059115]
[1770025097499,30.0,102.89,102.84,14.55059115]
[1770025098098,19.05059115,102.88,102.81,14.55059115]
[1770025098400,30.0,102.87,102.81,14.55059115]
[1770025099013,30.0,102.87,102.82,0.28432314]
[1770025099219,30.0,102.87,102.82,14.55059115]
[1770025099418,30.0,102.87,102.81,14.55059115]
[1770025099713,30.0,102.87,102.82,0.28432314]
[1770025099902,30.0,102.87,102.81,14.55059115]
[1770025100302,30.0,102.87,102.82,14.55059115]
[1770025100503,44.55059115,102.87,102.82,0.14216157]
[1770025101015,19.05059115,102.86,102.8,14.55059115]
[1770025101219,30.0,102.85,102.8,14.55059115]
[1770025101719,30.0,102.85,102.79,14.55059115]
[1770025102024,44.55059115,102.85,102.79,14.55059115]
[1770025102226,44.55059115,102.85,102.8,0.14216157]
[1770025102793,44.55059115,102.85,102.79,14.55059115]
[1770025102998,44.55059115,102.85,102.8,0.28432314]
[1770025103217,49.05059115,102.85,102.79,0.28432314]
[1770025103420,49.05059115,102.85,102.8,14.55059115]
[1770025103421,34.5,102.85,102.8,14.55059115]
[1770025103914,4.5,102.84,102.78,56.27537682]
[1770025104118,34.5,102.83,102.78,56.27537682]
[1770025104413,30.0,102.83,102.78,56.27537682]
[1770025104796,30.0,102.83,102.77,5.36086188]
[1770025104999,4.5,102.82,102.74,5.39652352]
[1770025105210,14.55059115,102.76,102.74,0.3127717]
[1770025105417,45.98237985,102.76,102.72,5.08717389]
[1770025105610,14.55059115,102.76,102.72,9.39843068]
[1770025105810,14.55059115,102.75,102.71,4.51125679]
[1770025106011,31.4517887,102.77,102.72,0.28432314]
[1770025106213,30.0,102.74,102.72,0.28432314]
[1770025106413,30.0,102.74,102.71,19.06184794]
[1770025106628,8.28465934,102.74,102.72,4.31125679]
[1770025107507,8.28465934,102.74,102.72,18.86184794]
[1770025107910,4.4317887,102.77,102.73,14.55059115]
[1770025108115,4.5,102.79,102.74,0.28432314]
[1770025108326,24.29202214,102.92,102.75,14.55059115]
[1770025108327,19.05059115,102.81,102.75,14.55059115]
[1770025108625,4.5,102.8,102.74,14.83491429]
[1770025108917,31.52,102.81,102.75,14.69275272]
[1770025109302,4.5,102.81,102.76,14.55059115]
[1770025109739,4.5,102.81,102.77,14.55059115]
[1770025110110,19.05059115,102.85,102.79,14.55059115]
[1770025110336,4.5,102.84,102.79,14.55059115]
[1770025110838,4.5,102.83,102.78,14.55059115]
[1770025111503,4.5,102.83,102.77,14.55059115]
[1770025111710,4.5,102.81,102.76,14.55059115]
[1770025112111,4.5,102.8,102.74,0.28432314]
[1770025112306,4.5,102.8,102.75,14.55059115]
[1770025112729,22.08,102.79,102.75,14.55059115]
[1770025113031,22.08,102.79,102.76,14.55059115]
[1770025113419,22.08,102.79,102.75,14.55059115]
[1770025113620,4.5,102.78,102.75,14.55059115]
[1770025113834,17.58,102.79,102.76,14.55059115]
[1770025114135,4.5,102.78,102.75,9.7323243]
[1770025114333,4.5,102.78,102.75,14.55059115]
[1770025114514,4.5,102.78,102.75,9.10971284]
[1770025114911,9.10971284,102.78,102.72,9.39403598]
[1770025115229,4.4317887,102.77,102.72,9.39403598]
[1770025115410,4.4317887,102.76,102.71,0.2]
[1770025115613,4.4317887,102.75,102.71,0.2]
[1770025115814,4.4317887,102.75,102.71,9.30971284]
[1770025116023,36.14971284,102.78,102.72,9.10971284]
[1770025116220,4.4317887,102.77,102.72,9.10971284]
[1770025116431,4.4317887,102.77,102.72,18.8496]
[1770025116726,4.4317887,102.77,102.71,13.62572973]
[1770025117107,4.4317887,102.77,102.71,23.36181786]
[1770025117324,4.4317887,102.77,102.71,13.62572973]
[1770025117532,4.4317887,102.77,102.72,9.11447294]
[1770025118330,4.4317887,102.77,102.71,13.62572973]
[1770025118533,4.4317887,102.77,102.72,9.11447294]
[1770025119643,17.58,102.79,102.75,13.4926155]
[1770025119817,17.58,102.79,102.76,13.4926155]
[1770025120140,17.58,102.79,102.75,13.4926155]
[1770025120338,17.58,102.79,102.77,9.11447294]
[1770025120516,17.58,102.79,102.76,13.4926155]
[1770025120917,17.58,102.79,102.75,9.73235758]
[1770025120918,10.91292578,102.79,102.78,9.11447294]
[1770025121128,10.91292578,102.79,102.77,13.4926155]
[1770025121524,4.5,102.84,102.79,8.52218822]
[1770025121820,40.65447294,102.86,102.8,9.11447294]
[1770025122125,4.5,102.85,102.8,9.11447294]
[1770025122429,4.5,102.85,102.81,9.11447294]
[1770025123033,4.5,102.84,102.77,10.0143759]
[1770025123217,4.5,102.84,102.79,9.11447294]
[1770025123419,4.5,102.83,102.79,9.11447294]
[1770025123619,4.5,102.85,102.81,9.11447294]
[1770025123935,4.5,102.9,102.83,9.11447294]
[1770025124240,4.5,102.9,102.79,4.41743242]
[1770025124241,4.5,102.87,102.82,9.11447294]
[1770025124533,4.5,102.87,102.83,9.11447294]
[1770025125235,4.5,102.86,102.8,61.8]
[1770025125436,4.5,102.84,102.79,9.11447294]
[1770025127032,4.5,102.83,102.78,9.11447294]
[1770025127832,4.5,102.82,102.77,9.11447294]
[1770025128041,4.5,102.81,102.76,9.11447294]
[1770025128344,4.5,102.81,102.77,9.11447294]
[1770025129338,4.5,102.81,102.76,9.73132784]
[1770025129544,4.5,102.81,102.78,9.11447294]
[1770025130126,4.5,102.81,102.76,9.73132784]
[1770025130437,4.5,102.81,102.78,9.11447294]
[1770025130636,4.5,102.83,102.8,9.11447294]
[1770025131144,4.5,102.85,102.81,9.11447294]
[1770025132030,4.5,102.85,102.8,9.11447294]
[1770025132229,4.5,102.84,102.79,9.25663451]
[1770025132440,4.5,102.84,102.81,9.11447294]
[1770025132827,27.04,102.86,102.82,9.11447294]
[1770025133022,4.5,102.85,102.79,0.14216157]
[1770025133330,4.5,102.85,102.81,9.11447294]
[1770025133834,4.5,102.85,102.79,10.01239287]
[1770025134149,4.5,102.85,102.81,9.11447294]
[1770025134329,4.5,102.85,102.8,9.11447294]
[1770025134645,4.5,102.85,102.81,9.11447294]
[1770025136430,4.5,102.85,102.8,9.11447294]
[1770025137741,4.5,102.85,102.79,0.28432314]
[1770025137742,4.5,102.85,102.81,9.11447294]
[1770025139540,4.5,102.86,102.82,9.11447294]
[1770025139949,4.5,102.85,102.81,9.11447294]
[1770025140434,4.5,102.85,102.8,9.11447294]
[1770025140640,4.5,102.85,102.81,9.11447294]
[1770025140835,4.5,102.85,102.8,9.11447294]
[1770025141035,4.5,102.85,102.79,9.39879608]